fUST/lending_fUST_20251219
["ID","MTS","AMOUNT","RATE_DAILY","PERIOD"]
[399085834,1766108831160,-1000.0,0.000169,2]
[399085835,1766108831182,-720.0,0.00017213,2]
[399085836,1766108831204,-587.0,0.00017727,2]
[399085837,1766108831225,-170.51886063,0.00017779,2]
[399085838,1766108831245,-204.0,0.00018197,2]
[399085839,1766108831266,-415.73,0.00018586,3]
[399085840,1766108831291,-481.20550567,0.00018809,2]
[399085841,1766108831313,-864.0,0.00018934,2]
[399085842,1766108831336,-231.0,0.00020197,2]
[399085843,1766108831355,-170.218247,0.00020548,2]
[399085844,1766108831377,-1000.0,0.00020828,2]
[399085845,1766108831396,-438.88102502,0.00021796,2]
[399085846,1766108831416,-258.0,0.00022197,2]
[399085847,1766108831438,-1000.0,0.00022911,10]
[399085848,1766108831460,-244.0,0.00022911,10]
[399085849,1766108831479,-285.0,0.00024197,2]
[399085850,1766108831502,-187.11606088,0.000248,2]
[399085851,1766108831522,-215.85,0.00025105,14]
[399085852,1766108831542,-176.64,0.00025105,14]
[399085853,1766108831562,-176.62,0.00025105,14]
[399085854,1766108831584,-1000.0,0.00025202,10]
[399085855,1766108831606,-492.0,0.00025202,10]
[399085856,1766108831627,-312.0,0.00026197,2]
[399085857,1766108831647,-160.0,0.00026525,2]
[399085858,1766108831667,-260.0,0.00027073,2]
[399085859,1766108831686,-150.63760293,0.00027397,5]
[399085860,1766108831705,-360.0,0.00027621,2]
[399085861,1766108831727,-1000.0,0.00027722,30]
[399085862,1766108831748,-791.0,0.00027722,30]
[399085863,1766108831767,-460.0,0.00028169,2]
[399085864,1766108831790,-339.0,0.00028197,2]
[399085865,1766108831809,-366.96146334,0.00028592,2]
[399085866,1766108831830,-180.0,0.00028717,2]
[399085867,1766108831857,-438.88102502,0.00028898,2]
[399085868,1766108831877,-666.19529245,0.00029468,2]
[399085869,1766108831897,-617.0,0.0003,6]
[399085870,1766108831918,-266.17131818,0.00030197,2]
[399085871,1766108831941,-1000.0,0.00030494,30]
[399085872,1766108831966,-1000.0,0.00030494,30]
[399085873,1766108831987,-660.53063401,0.00030501,2]
[399085874,1766108832008,-321.89383428,0.00030561,2]
[399085875,1766108832028,-455.19492655,0.00030561,2]
[399085876,1766108832049,-1174.27668269,0.0003241,2]
[399085877,1766108832074,-325.76007884,0.00032876,120]
[399085878,1766108832096,-1000.0,0.00033544,30]
[399085879,1766108832117,-1000.0,0.00033544,30]
[399085880,1766108832138,-579.0,0.00033544,30]
[399085881,1766108832160,-295.02013294,0.00034319,2]
[399085882,1766108834079,-1281.4904015,0.00034319,2]
[399085883,1766108834974,150.0,9.149e-05,2]
[399085884,1766108835373,150.0,9.981e-05,2]
[399085885,1766108835756,218.75,0.00010813,2]
[399085886,1766108836168,291.66,0.00011645,2]
[399085887,1766108836634,364.58,0.00012476,2]
[399085899,1766108839400,-437.49,0.00013308,2]
[399085900,1766108839431,-300.0,0.00013673,2]
[399085901,1766108839470,-510.41,0.0001414,2]
[399085902,1766108839504,-600.0,0.00014221,2]
[399085903,1766108839533,-433.75887838,0.00014768,2]
[399085912,1766108842179,5000.0,0.0001494,2]
[399085913,1766108843265,436.69224324,0.00013699,2]
[399085914,1766108852124,-5000.0,0.00013562,2]
[399085915,1766108852145,-63.30775676,0.00013699,2]
[399085916,1766108852166,-500.0,0.00013699,2]
[399085917,1766108852187,-500.0,0.00013699,2]
[399085918,1766108852211,-583.32,0.00014972,2]
[399085919,1766108852234,-656.24,0.00015803,2]
[399085920,1766108852259,-729.15,0.00016635,2]
[399085921,1766108852280,-258.29678227,0.00034319,2]
[399085922,1766108852301,-455.19492655,0.00034342,2]
[399085923,1766108852322,-3764.41167327,0.00034647,2]
[399085924,1766108852342,-1716.36041165,0.0003467,2]
[399085947,1766108947128,-628.298984,0.00013273,2]
[399085948,1766108947148,-500.21307807,0.00013273,2]
[399085949,1766108947168,-514.87412535,0.00013698,2]
[399085950,1766108947188,-500.0,0.00013699,2]
[399085951,1766108947207,-500.0,0.00013699,2]
[399085952,1766108947227,-500.0,0.00013699,2]
[399085953,1766108947249,-500.0,0.00013699,2]
[399085954,1766108947269,-500.0,0.00013699,2]
[399085955,1766108947292,-150.18,0.00013716,2]
[399085956,1766108947312,-1000.0,0.00014247,2]
[399085957,1766108947332,-1000.0,0.00014247,2]
[399085958,1766108947353,-501.27079192,0.00014247,2]
[399085959,1766108947372,-1000.0,0.00014247,2]
[399085960,1766108947392,-510.88194934,0.00014247,2]
[399085961,1766108947412,-1500.0,0.00014795,2]
[399085962,1766108947431,-1500.0,0.00014795,2]
[399085963,1766108947450,-1500.0,0.00014795,2]
[399085964,1766108947476,-300.36,0.00014962,2]
[399085965,1766108947495,-409.71438174,0.00015342,2]
[399085966,1766108947515,-2000.0,0.00015342,2]
[399085967,1766108947536,-503.5708917,0.00015342,2]
[399085968,1766108947557,-600.0,0.00015648,2]
[399085969,1766108947576,-2157.04326763,0.0001589,2]
[399085970,1766108947597,-450.55,0.00016209,2]
[399085971,1766108947617,-720.0,0.00017213,2]
[399085972,1766108947638,-600.73,0.00017456,2]
[399085973,1766108947670,-5000.0,0.00017947,120]
[399085974,1766108947690,-250.46548383,0.00018128,2]
[399085975,1766108947712,-750.91,0.00018703,2]
[399085976,1766108947736,-864.0,0.00018934,2]
[399085977,1766108947760,-901.09,0.0001995,2]
[399085978,1766108947783,-1000.0,0.00020828,2]
[399085979,1766108947805,-1051.27,0.00021197,2]
[399085980,1766108947827,-1201.46,0.00022444,2]
[399085981,1766108947849,-499.0,0.00022911,10]
[399085982,1766108947870,-1351.64,0.00023691,2]
[399085983,1766108947894,-1501.82,0.00024937,2]
[399085984,1766108947913,-1174.1587429,0.00026028,2]
[399085985,1766108947939,-162.73903018,0.000332,117]
[399085986,1766108954057,500.0,0.00013699,2]
[399085987,1766108954124,1000.0,0.00014247,2]
[399085988,1766108965716,3150.73781792,0.00034324,2]
[399085989,1766108966107,-1849.26218208,0.00034324,2]
[399085990,1766108966129,-38120.71550145,0.0003467,2]
[399085991,1766108986828,150.0,9.961e-05,2]
[399085992,1766108987248,150.0,0.00010866,2]
[399085993,1766108987697,150.0,0.00011772,2]
[399085994,1766108988090,180.22,0.00012677,2]
[399085995,1766108988503,225.27,0.00013583,2]
[399085996,1766108988890,270.33,0.00014488,2]
[399085997,1766108989117,3441.58804131,0.00025204,2]
[399085998,1766108989137,3970.57651943,0.00025204,2]
[399085999,1766108989156,5337.05198401,0.00025204,2]
[399086000,1766108989301,315.38,0.00015394,2]
[399086001,1766108989701,360.44,0.00016299,2]
[399086002,1766108990093,405.49,0.00017205,2]
[399086003,1766108990480,450.55,0.0001811,2]
[399086004,1766109004997,500.0,0.00013699,2]
[399086005,1766109005049,58.6876356,0.00014795,2]
[399086025,1766109031820,-956.62484928,0.00014247,2]
[399086028,1766109031874,-43.37515072,0.00014247,2]
[399086029,1766109031885,-643.85561475,0.00014795,2]
[399086030,1766109031897,-800.48159021,0.00014795,2]
[399086031,1766109031908,-92.60370096,0.00025204,2]
[399086032,1766109031919,-597.21929559,0.00025204,2]
[399086033,1766109031944,-6215.46166076,0.00025204,2]
[399086034,1766109031954,-5000.0,0.00035161,2]
[399086035,1766109031966,-5049.89540938,0.00035516,2]
[399086036,1766109031977,-155.13,0.00038082,60]
[399086037,1766109031987,-158.19,0.00038117,60]
[399086038,1766109031997,-455.19492655,0.00038123,2]
[399086039,1766109032007,-155.13,0.00038182,60]
[399086040,1766109032018,-158.19,0.00038217,60]
[399086041,1766109032028,-155.13,0.00038282,60]
[399086042,1766109032038,-158.19,0.00038317,60]
[399086043,1766109032048,-155.13,0.00038382,120]
[399086044,1766109032060,-158.19,0.00038417,120]
[399086045,1766109032070,-155.13,0.00038482,120]
[399086046,1766109032081,-158.19,0.00038517,120]
[399086047,1766109032092,-155.13,0.00038582,120]
[399086048,1766109032103,-158.19,0.00038617,120]
[399086049,1766109032115,-155.13,0.00038682,120]
[399086050,1766109032126,-158.19,0.00038717,120]
[399086051,1766109032137,-155.13,0.00038782,120]
[399086052,1766109032149,-158.19,0.00038817,120]
[399086053,1766109032161,-155.13,0.00038882,120]
[399086054,1766109032172,-158.19,0.00038917,120]
[399086055,1766109032183,-155.13,0.00038982,120]
[399086056,1766109032193,-158.19,0.00039017,120]
[399086057,1766109032203,-155.13,0.00039082,120]
[399086058,1766109032214,-158.19,0.00039117,120]
[399086059,1766109032224,-155.13,0.00039182,120]
[399086060,1766109032234,-158.27602551,0.00039217,120]
[399086061,1766109032244,-155.13,0.00039282,120]
[399086062,1766109032256,-155.13,0.00039382,120]
[399086063,1766109032268,-628.05995159,0.00039426,23]
[399086064,1766109032279,-155.13,0.00039482,120]
[399086065,1766109032290,-1587.15946145,0.00039581,15]
[399086066,1766109032302,-1587.15946145,0.00039581,15]
[399086067,1766109032314,-1587.15946145,0.00039581,15]
[399086068,1766109032334,-1587.15946145,0.00039581,15]
[399086069,1766109032350,-1587.15946145,0.00039581,15]
[399086070,1766109032361,-1587.15946145,0.00039581,15]
[399086071,1766109032372,-1587.15946145,0.00039581,15]
[399086072,1766109032383,-1587.15946145,0.00039581,15]
[399086073,1766109032394,-1587.15946145,0.00039581,15]
[399086074,1766109032406,-1587.15946145,0.00039581,15]
[399086075,1766109032417,-1587.15946145,0.00039581,15]
[399086076,1766109032429,-1587.15946145,0.00039581,15]
[399086077,1766109032439,-1587.15946145,0.00039581,15]
[399086078,1766109032450,-1587.15946145,0.00039581,15]
[399086079,1766109032463,-155.13,0.00039582,120]
[399086080,1766109032476,-175.55241004,0.00039626,2]
[399086081,1766109032488,-155.13,0.00039682,120]
[399086082,1766109032499,-500.0,0.00039725,7]
[399086083,1766109032510,-500.0,0.00039725,15]
[399086084,1766109032520,-485.76123324,0.00039725,15]
[399086085,1766109032530,-535.31370001,0.00039725,15]
[399086086,1766109032541,-300.72822909,0.00039725,7]
[399086087,1766109032551,-155.13,0.00039782,120]
[399086088,1766109032562,-248.74,0.000398,2]
[399086089,1766109032575,-297.9,0.000398,30]
[399086090,1766109032585,-155.13,0.00039882,120]
[399086091,1766109032596,-155.13,0.00039982,120]
[399086092,1766109032607,-300.0,0.0004,5]
[399086093,1766109032618,-155.16884405,0.00040082,120]
[399086094,1766109032630,-203.55559667,0.00040274,5]
[399086095,1766109032641,-175.55241,0.00040475,2]
[399086096,1766109032653,-628.0,0.00040557,27]
[399086097,1766109032665,-1150.800342,0.000407,34]
[399086098,1766109032675,-189.23301403,0.00040851,120]
[399086099,1766109032686,-2950.0,0.00040851,120]
[399086100,1766109032698,-3524.86473573,0.00040857,4]
[399086101,1766109032709,-500.0,0.00041096,31]
[399086102,1766109032720,-500.0,0.00041096,31]
[399086103,1766109032732,-500.0,0.00041096,31]
[399086104,1766109032742,-500.0,0.00041096,31]
[399086105,1766109032753,-500.0,0.00041096,31]
[399086106,1766109032763,-500.0,0.00041096,31]
[399086107,1766109032774,-500.0,0.00041096,31]
[399086108,1766109032785,-500.0,0.00041096,31]
[399086109,1766109032796,-500.0,0.00041096,31]
[399086110,1766109032807,-500.0,0.00041096,31]
[399086111,1766109032961,-500.0,0.00041096,31]
[399086112,1766109032972,-500.0,0.00041096,31]
[399086113,1766109032982,-500.0,0.00041096,31]
[399086114,1766109032991,-175.55241,0.00041323,2]
[399086115,1766109033001,-455.19492655,0.00041903,2]
[399086116,1766109033011,-175.55241,0.00042172,2]
[399086117,1766109033021,-3140.0,0.0004282,37]
[399086118,1766109033030,-500.0,0.00043,120]
[399086119,1766109033040,-175.55241,0.0004302,2]
[399086120,1766109033050,-250.0,0.00043094,2]
[399086121,1766109033060,-250.0,0.00043094,2]
[399086122,1766109033070,-250.0,0.00043094,2]
[399086123,1766109033081,-250.0,0.00043094,2]
[399086124,1766109033091,-250.0,0.00043094,2]
[399086125,1766109033101,-250.0,0.00043094,2]
[399086126,1766109033111,-250.0,0.00043094,2]
[399086127,1766109033121,-250.0,0.00043094,2]
[399086128,1766109033131,-7106.71177486,0.0004312,2]
[399086150,1766109037939,-1587.15946145,0.00039581,15]
[399086152,1766109037948,-1587.15946145,0.00039581,15]
[399086154,1766109037957,-1.95458135,0.00039581,15]
[399086156,1766109037969,-1585.2048801,0.00039581,15]
[399086158,1766109037978,-1587.15946145,0.00039581,15]
[399086159,1766109037988,-1587.15946145,0.00039581,15]
[399086161,1766109037997,-1587.15946145,0.00039581,15]
[399086163,1766109038006,-1587.15946145,0.00039581,15]
[399086165,1766109038018,-1587.15946145,0.00039581,15]
[399086167,1766109038028,-1587.15946145,0.00039581,15]
[399086169,1766109038038,-1587.15946145,0.00039581,15]
[399086171,1766109038048,-1587.15946145,0.00039581,15]
[399086173,1766109038058,-1587.15946145,0.00039581,15]
[399086175,1766109038069,-1587.15946145,0.00039581,15]
[399086177,1766109038078,-1587.15946145,0.00039581,15]
[399086179,1766109038088,-1587.15946145,0.00039581,15]
[399086181,1766109038098,-1587.15946145,0.00039581,15]
[399086183,1766109038107,-1587.15946145,0.00039581,15]
[399086184,1766109038116,-1587.15946145,0.00039581,15]
[399086186,1766109038127,-1587.15946145,0.00039581,15]
[399086188,1766109038136,-1587.15946145,0.00039581,15]
[399086190,1766109038145,-1587.15946145,0.00039581,15]
[399086192,1766109038155,-1587.15946145,0.00039581,15]
[399086194,1766109038164,-1587.15946145,0.00039581,15]
[399086196,1766109038174,-1587.15946145,0.00039581,15]
[399086198,1766109038183,-1587.15946145,0.00039581,15]
[399086200,1766109038193,-1587.15946145,0.00039581,15]
[399086202,1766109038202,-1587.15946145,0.00039581,15]
[399086203,1766109038213,-1587.15946145,0.00039581,15]
[399086205,1766109038222,-1587.15946145,0.00039581,15]
[399086207,1766109038233,-1587.15946145,0.00039581,15]
[399086209,1766109038243,-1587.15946145,0.00039581,15]
[399086211,1766109038253,-1587.15946145,0.00039581,15]
[399086213,1766109038263,-1587.15946145,0.00039581,15]
[399086215,1766109038274,-1587.15946145,0.00039581,15]
[399086217,1766109038284,-1587.15946145,0.00039581,15]
[399086219,1766109038295,-1587.15946145,0.00039581,15]
[399086221,1766109038305,-1587.15946145,0.00039581,15]
[399086223,1766109038316,-1587.15946145,0.00039581,15]
[399086225,1766109038327,-1587.15946145,0.00039581,15]
[399086227,1766109038337,-1587.15946145,0.00039581,15]
[399086229,1766109038347,-1587.15946145,0.00039581,15]
[399086231,1766109038357,-500.0,0.00041096,31]
[399086233,1766109038368,-589.46919801,0.00041096,31]
[399086235,1766109038377,-101940.94103407,0.0004312,2]
[399086237,1766109038389,-8529.45575838,0.0004312,2]
[399086239,1766109038402,-889.78,0.0004312,2]
[399086293,1766109038957,-1580.69795006,0.0004312,2]
[399086383,1766109040393,-10201.66937946,0.0004312,2]
[399086390,1766109040449,-685.65087353,0.0004312,2]
[399087060,1766109047467,-12279.8309739,0.0004312,2]
[399087062,1766109047479,-532.71886932,0.0004312,2]
[399093688,1766109126212,-500.0,0.00013273,2]
[399093691,1766109126233,-185.65087353,0.00013821,2]
[399095595,1766109148710,-814.34912647,0.00013821,2]
[399098592,1766109182849,501.07032182,0.00013273,2]
[399098601,1766109182918,500.0,0.00013699,2]
[399098604,1766109182945,500.0,0.00013273,2]
[399098612,1766109183000,1000.0,0.00013821,2]
[399098897,1766109185800,500.0,0.00013273,2]
[399102716,1766109243131,501.59990885,0.00013699,2]
[399104376,1766109263630,150.0,0.00012875,2]
[399108355,1766109307195,500.0,0.00013699,2]
[399110915,1766109336177,-592.66104982,0.00014,2]
[399110970,1766109423877,160.92940252,0.00013699,2]
[399110971,1766109423972,500.0,0.00013699,2]
[399110980,1766109445451,592.66104982,0.00013699,2]
[399110984,1766109451895,-5000.0,0.00014104,2]
[399110988,1766109460771,-5000.0,0.00014104,2]
[399110992,1766109470161,-150.0,0.00014246,2]
[399110993,1766109470192,-1000.0,0.00014247,2]
[399110994,1766109470224,-1000.0,0.00014247,2]
[399110995,1766109470256,-1000.0,0.00014247,2]
[399110996,1766109470292,-300.0,0.00014367,2]
[399110997,1766109470321,-1500.0,0.00014368,2]
[399110999,1766109473761,-1500.0,0.00014368,2]
[399111000,1766109473789,-1209.17967203,0.00014795,2]
[399111001,1766109473819,-1500.0,0.00014795,2]
[399111002,1766109473849,-81.65065594,0.00014795,2]
[399111006,1766109480162,-5000.0,0.00014647,2]
[399111008,1766109482987,-1418.34934406,0.00014795,2]
[399111009,1766109483014,-501.20039929,0.00014916,2]
[399111010,1766109483041,-1077.26406661,0.00014916,2]
[399111059,1766109489812,501.03663679,0.00013273,2]
[399111060,1766109489984,500.62299619,0.00013273,2]
[399111066,1766109492517,500.0,0.00013273,2]
[399111084,1766109503574,2504.7227471,0.00014916,2]
[399111085,1766109503596,2495.2772529,0.00014916,2]
[399111121,1766109526956,5000.0,0.00014916,2]
[399111145,1766109552887,500.71591428,0.00013273,2]
[399111146,1766109553067,500.0,0.00013273,2]
[399111147,1766109553474,300.0,0.00013673,2]
[399111148,1766109557426,393.53776568,0.00013273,2]
[399111149,1766109559608,500.53126956,0.00013273,2]
[399111150,1766109563655,210.26524425,0.00013273,2]
[399111151,1766109564390,500.0,0.00013273,2]
[399111152,1766109565916,500.0,0.00013273,2]
[399111153,1766109566112,500.0,0.00013273,2]
[399111154,1766109566281,500.0,0.00013273,2]
[399111155,1766109566328,501.11960352,0.00013273,2]
[399111156,1766109566454,500.0,0.00013273,2]
[399111157,1766109566480,500.0,0.00013273,2]
[399111158,1766109566505,500.0,0.00013273,2]
[399111159,1766109614110,150.0,8.968e-05,2]
[399111160,1766109614526,150.0,9.783e-05,2]
[399111161,1766109614923,150.0,0.00010599,2]
[399111162,1766109615318,150.0,0.00011414,2]
[399111163,1766109615770,150.0,0.00012229,2]
[399111164,1766109616190,150.0,0.00013045,2]
[399111165,1766109616526,500.0,0.00013273,2]
[399111166,1766109617047,150.0,0.0001386,2]
[399111167,1766109618647,500.0,0.00013273,2]
[399111168,1766109618696,500.0,0.00013699,2]
[399111186,1766109663437,500.60980184,0.00013273,2]
[399111187,1766109663546,447.89853099,0.00013273,2]
[399111188,1766109664858,500.25576484,0.00013273,2]
[399111217,1766109718864,-1000.0,0.00014247,2]
[399111218,1766109724303,222.61677492,0.00013699,2]
[399111219,1766109729963,500.40989102,0.00013699,2]
[399111220,1766109734543,500.0,0.00013699,2]
[399111221,1766109735135,500.0,0.00013273,2]
[399111222,1766109736958,5000.0,0.00014795,2]
[399111223,1766109753152,797.1836258,0.00014916,2]
[399111224,1766109761030,3202.8263742,0.00014916,2]
[399111225,1766109761050,1797.1736258,0.00014916,2]
[399111226,1766109783199,500.68402048,0.00013273,2]
[399111227,1766109783247,500.0,0.00013699,2]
[399111228,1766109783305,1000.0,0.00014247,2]
[399111229,1766109783358,1501.04533932,0.00014795,2]
[399111230,1766109783522,500.0,0.00013273,2]
[399111231,1766109783586,1000.0,0.00013821,2]
[399111232,1766109783640,1500.0,0.00014368,2]
[399111233,1766109783692,2000.0,0.00014916,2]
[399111234,1766109784673,1498.2806402,0.00014988,2]
[399111235,1766109784695,3501.7193598,0.00014988,2]
[399111236,1766109789721,502.12038227,0.00013273,2]
[399111237,1766109792642,500.0,0.00013699,2]
[399111238,1766109792702,1000.0,0.00014247,2]
[399111239,1766109792760,1500.0,0.00014795,2]
[399111240,1766109793117,177.84910352,0.00013699,2]
[399111241,1766109793298,500.0,0.00013699,2]
[399111242,1766109793326,524.83006955,0.00014247,2]
[399111243,1766109795978,500.24781108,0.00013699,2]
[399111244,1766109799983,500.0,0.00013699,2]
[399111245,1766109800035,793.24327378,0.00014247,2]
[399111246,1766109800057,206.75672622,0.00014247,2]
[399111247,1766109800083,1408.05792696,0.00014795,2]
[399111248,1766109800423,385.56871377,0.00014988,2]
[399111250,1766109801868,502.22454175,0.00013699,2]
[399111251,1766109803227,500.0,0.00013699,2]
[399111252,1766109803286,1000.0,0.00014247,2]
[399111253,1766109803349,1500.0,0.00014795,2]
[399111254,1766109803433,505.79086482,0.00013699,2]
[399111255,1766109803466,219.08611254,0.00013273,2]
[399111256,1766109803525,500.0,0.00013273,2]
[399111257,1766109803550,1020.26477333,0.00014916,2]
[399111258,1766109803599,1000.0,0.00013821,2]
[399111259,1766109803649,1252.26034061,0.00014368,2]
[399111260,1766109803671,247.73965939,0.00014368,2]
[399111261,1766109803884,1000.0,0.00013821,2]
[399111262,1766109803946,1500.0,0.00014368,2]
[399111263,1766109804213,500.0,0.00013699,2]
[399111264,1766109804242,2000.0,0.00014916,2]
[399111265,1766109804269,1000.0,0.00014247,2]
[399111266,1766109804295,500.0,0.00013273,2]
[399111267,1766109804322,1000.0,0.00014795,2]
[399111268,1766109804964,500.0,0.00013821,2]
[399111269,1766109805015,500.0,0.00013273,2]
[399111271,1766109808351,1252.27034061,0.00014988,2]
[399111272,1766109808373,3747.72965939,0.00014988,2]
[399111281,1766109831813,5000.0,0.00014988,2]
[399111286,1766109846054,500.0,0.00013273,2]
[399111287,1766109846114,1017.82513349,0.00013821,2]
[399111288,1766109846219,500.0,0.00013699,2]
[399111289,1766109846252,1000.0,0.00014247,2]
[399111290,1766109846326,437.3635955,0.00014795,2]
[399111295,1766109852899,500.46061568,0.00013273,2]
[399111296,1766109853476,500.0,0.00013699,2]
[399111297,1766109853527,544.36065533,0.00014247,2]
[399111298,1766109853548,455.63934467,0.00014247,2]
[399111299,1766109853574,500.0,0.00013273,2]
[399111300,1766109853600,1500.0,0.00014795,2]
[399111301,1766109853627,1000.0,0.00013821,2]
[399111302,1766109853685,1004.50382162,0.00014368,2]
[399111303,1766109854321,201.0,4.2e-07,2]
[399111304,1766109854670,5000.0,0.00014988,2]
[399111306,1766109855455,201.0,4.2e-07,2]
[399111316,1766109877677,137.86683371,0.00014988,2]
[399111317,1766109877701,4862.13316629,0.00014988,2]
[399111326,1766109901095,5000.0,0.00014988,2]
[399111328,1766109903845,500.0,0.00013699,2]
[399111329,1766109903888,1000.0,0.00014247,2]
[399111330,1766109903955,500.0,0.00013699,2]
[399111331,1766109903984,1500.88007968,0.00014795,2]
[399111332,1766109904013,210.7536151,0.00014247,2]
[399111333,1766109904071,500.0,0.00013273,2]
[399111334,1766109904131,788.37630522,0.00013821,2]
[399111335,1766109904152,239.69665975,0.00013821,2]
[399111336,1766109904205,500.0,0.00013699,2]
[399111337,1766109904238,1000.0,0.00014247,2]
[399111338,1766109904283,500.0,0.00013273,2]
[399111339,1766109904310,1500.40524925,0.00014795,2]
[399111340,1766109904347,174.61694129,0.00013821,2]
[399111343,1766109904809,346.00266899,0.00013699,2]
[399111344,1766109906473,500.0,0.00013699,2]
[399111345,1766109906528,1000.0,0.00014247,2]
[399111346,1766109906585,1506.71125103,0.00014795,2]
[399111347,1766109906813,500.0,0.00013273,2]
[399111353,1766109916856,500.0,0.00013273,2]
[399111354,1766109916907,1000.0,0.00013821,2]
[399111355,1766109917408,300.0,0.00013673,2]
[399111356,1766109917458,432.57722969,0.00014221,2]
[399111357,1766109917483,167.42277031,0.00014221,2]
[399111358,1766109917544,900.0,0.00014768,2]
[399111361,1766109920677,1000.0,0.00014247,2]
[399111362,1766109920726,500.0,0.00013699,2]
[399111365,1766109922232,500.0,0.00013699,2]
[399111366,1766109922285,1001.0992649,0.00014247,2]
[399111367,1766109924911,5000.0,0.00014988,2]
[399111379,1766109927288,500.0,0.00013699,2]
[399111382,1766109927356,431.48796479,0.00014247,2]
[399111384,1766109927378,568.51203521,0.00014247,2]
[399111387,1766109927696,500.0,0.00013273,2]
[399111388,1766109927750,501.42230241,0.00013821,2]
[399111389,1766109928226,500.0,0.00013273,2]
[399111390,1766109928268,502.0021657,0.00013821,2]
[399111391,1766109928481,585.87580112,0.00013273,2]
[399111392,1766109928587,500.0,0.00013699,2]
[399111393,1766109928632,1000.0,0.00014247,2]
[399111394,1766109929133,500.0,0.00013273,2]
[399111395,1766109929275,500.0,0.00013273,2]
[399111396,1766109929403,500.0,0.00013273,2]
[399111398,1766109929858,500.0,0.00013273,2]
[399111399,1766109929887,500.0,0.00013699,2]
[399111400,1766109929918,385.56871377,0.00014247,2]
[399111402,1766109947789,2456.62898179,0.00014988,2]
[399111403,1766109947810,2543.37101821,0.00014988,2]
[399111405,1766109965688,500.56415557,0.00013699,2]
[399111406,1766109965714,500.0,0.00013699,2]
[399111407,1766109965830,501.95262987,0.00014247,2]
[399111408,1766109965925,502.54715627,0.00013699,2]
[399111409,1766109966031,500.0,0.00013699,2]
[399111410,1766109966059,500.0,0.00013699,2]
[399111411,1766109966086,502.56765628,0.00014247,2]
[399111412,1766109966113,539.77904873,0.00014247,2]
[399111413,1766109966661,500.34936785,0.00013699,2]
[399111416,1766109970093,500.0,0.00013699,2]
[399111417,1766109970758,500.73063204,0.00014247,2]
[399111418,1766109970784,500.0,0.00013699,2]
[399111419,1766109970809,500.0,0.00013273,2]
[399111420,1766109971560,500.0,0.00013273,2]
[399111421,1766109971737,408.14833518,0.00014988,2]
[399111422,1766109971763,4591.85166482,0.00014988,2]
[399111423,1766109971815,500.0,0.00013273,2]
[399111424,1766109972974,500.0,0.00013699,2]
[399111425,1766109973007,237.66125551,0.00014247,2]
[399111426,1766109973086,500.0,0.00013699,2]
[399111427,1766109973114,500.0,0.00013699,2]
[399111429,1766109974013,558.53,0.00010264,2]
[399111430,1766109974419,1117.05,0.00011197,2]
[399111431,1766109974843,1494.91707967,0.0001213,2]
[399111432,1766109974868,180.66292033,0.0001213,2]
[399111433,1766109975236,2234.1,0.00013063,2]
[399111434,1766109975642,2792.63,0.00013996,2]
[399111458,1766110024942,-500.0,0.00013273,2]
[399111459,1766110024972,-500.77366785,0.00013273,2]
[399111460,1766110025001,-500.0,0.00013273,2]